bitfinex-derivatives/quotes_ETHF0:USTF0_20220106
["timestamp","ask_amount","ask_price","bid_price","bid_amount"]
[1641486791265,0.397182,3385.0,3384.5,0.09723081]
[1641486791465,1.33021275,3384.9,3384.5,0.09723081]
[1641486791664,0.397182,3384.8,3384.5,0.09723081]
[1641486791864,0.459982,3384.7,3384.5,0.09723081]
[1641486792064,1.164382,3384.7,3384.5,0.09723081]
[1641486792265,0.397182,3384.6,3384.0,14.64479]
[1641486792465,1.33021275,3384.9,3384.5,2.00479]
[1641486792664,2.00479,3385.4,3384.5,2.00479]
[1641486792864,0.397182,3385.0,3384.5,2.00479]
[1641486793066,0.397182,3385.0,3384.5,2.400026]
[1641486793664,0.397182,3385.0,3384.5,15.040026]
[1641486793967,0.397182,3385.0,3384.0,2.00479]
[1641486794366,1.5,3384.5,3384.0,2.00479]
[1641486794667,0.397182,3384.4,3384.0,2.00479]
[1641486795568,0.397182,3384.4,3383.7,2.00479]
[1641486796167,0.397182,3384.4,3383.7,2.389262]
[1641486796367,0.397182,3384.4,3383.8,12.64]
[1641486796866,0.397182,3384.4,3383.7,2.389262]
[1641486797066,1.079382,3384.4,3383.7,2.389262]
[1641486799569,1.079382,3384.4,3383.8,0.384472]
[1641486799768,1.079382,3384.4,3383.8,13.12179785]
[1641486799971,2.00479,3384.8,3383.8,15.01703385]
[1641486800170,32.64296778,3385.9,3384.6,12.64]
[1641486800470,0.99564874,3385.4,3384.7,0.395236]
[1641486800769,0.99564874,3385.4,3385.0,14.64479]
[1641486800968,0.397182,3385.3,3384.7,2.00479]
[1641486801175,0.397182,3385.3,3383.3,5.462]
[1641486801569,1.897182,3385.3,3382.9,33.0231]
[1641486801770,0.397182,3385.3,3383.5,1.5]
[1641486801969,0.397182,3385.3,3383.6,12.64]
[1641486802171,0.397182,3385.3,3383.9,12.64]
[1641486802568,0.397182,3385.3,3384.7,2.00479]
[1641486804171,0.397182,3385.3,3384.3,2.00479]
[1641486804370,1.123182,3385.3,3384.3,2.00479]
[1641486804573,2.00479,3384.9,3384.3,2.00479]
[1641486804771,0.397182,3384.8,3384.3,2.00479]
[1641486804974,0.726,3385.3,3384.3,2.00479]
[1641486806274,2.97750208,3384.9,3384.3,2.00479]
[1641486806471,0.397182,3384.8,3383.7,2.00479]
[1641486806673,2.00479,3384.5,3383.7,2.00479]
[1641486806870,0.397182,3384.4,3383.8,0.384472]
[1641486807072,0.397182,3384.4,3383.8,0.779708]
[1641486807274,0.397182,3384.4,3383.8,13.419708]
[1641486807673,2.56369,3384.5,3383.8,13.419708]
[1641486808073,2.56369,3384.5,3383.8,0.779708]
[1641486808274,2.56369,3384.5,3383.9,12.64]
[1641486808477,0.397182,3384.4,3383.8,0.779708]
[1641486808676,0.397182,3384.4,3384.1,2.00479]
[1641486808878,0.459982,3384.3,3384.1,2.00479]
[1641486809376,0.397182,3384.2,3384.1,2.00479]
[1641486810275,2.00479,3385.2,3384.1,2.00479]
[1641486810476,2.00479,3385.2,3384.1,14.64479]
[1641486810880,2.00479,3385.2,3384.1,2.00479]
[1641486811077,2.00479,3385.2,3384.1,14.64479]
[1641486811379,2.00479,3385.2,3384.5,1.5]
[1641486811579,2.00479,3385.2,3384.6,13.035236]
[1641486812077,2.00479,3385.2,3384.8,12.64]
[1641486812278,2.00479,3385.2,3384.9,13.035236]
[1641486812479,2.00479,3385.2,3384.9,0.395236]
[1641486812881,2.00479,3385.2,3384.9,1.895236]
[1641486813081,2.00479,3385.8,3384.9,0.395236]
[1641486813681,2.00479,3385.8,3384.9,13.035236]
[1641486814882,2.00479,3385.8,3384.9,0.395236]
[1641486815685,2.00479,3385.8,3384.7,0.384472]
[1641486815882,2.87149,3385.8,3384.7,0.384472]
[1641486816082,2.87149,3385.8,3385.4,1.5]
[1641486816283,2.87149,3385.8,3385.5,0.395236]
[1641486816488,2.00479,3385.8,3385.5,1.034136]
[1641486817583,0.459982,3385.7,3385.0,2.00479]
[1641486817984,0.397182,3385.6,3385.0,2.00479]
[1641486818583,0.397182,3385.6,3384.1,2.00479]
[1641486818584,2.00479,3385.4,3384.6,2.00479]
[1641486818784,0.397182,3385.3,3384.6,2.00479]
[1641486819187,0.397182,3385.3,3384.7,0.779708]
[1641486819587,0.397182,3385.3,3384.7,0.384472]
[1641486820187,0.397182,3385.3,3384.7,0.48553736]
[1641486820188,0.46934291,3385.2,3384.7,0.48553736]
[1641486820388,1.46480889,3385.2,3384.7,0.48553736]
[1641486820588,1.86199089,3385.2,3384.7,0.48553736]
[1641486820789,1.86199089,3385.2,3384.7,0.88077336]
[1641486820987,1.86199089,3385.2,3384.7,0.10106536]
[1641486821388,1.46480889,3385.1,3384.8,0.10106536]
[1641486821591,0.857164,3385.0,3384.8,0.10106536]
[1641486822688,2.00479,3384.9,3384.8,0.10106536]
[1641486822888,3.24609649,3384.9,3384.3,0.44754635]
[1641486823088,3.24609649,3384.9,3384.2,0.10106536]
[1641486823287,0.397182,3384.8,3384.2,0.10106536]
[1641486823691,0.397182,3384.8,3384.3,0.384472]
[1641486824291,2.1078314,3384.8,3384.3,0.384472]
[1641486824491,0.99453724,3384.6,3384.3,0.779708]
[1641486824890,0.99453724,3384.6,3384.4,12.64]
[1641486825295,0.99453724,3384.6,3384.3,0.384472]
[1641486825492,0.99453724,3384.6,3384.4,12.74106536]
[1641486825693,0.397182,3384.5,3384.4,12.74106536]
[1641486826293,0.397182,3384.5,3384.4,12.64]
[1641486827094,1.7106494,3384.8,3384.4,14.14]
[1641486827294,2.49628215,3385.6,3384.8,12.64]
[1641486827493,2.49628215,3385.6,3385.0,12.64]
[1641486827693,2.49628215,3385.6,3385.2,12.64]
[1641486828096,2.49628215,3385.6,3385.3,13.035236]
[1641486828697,2.49628215,3385.6,3385.4,2.00479]
[1641486828896,7.415e-05,3385.6,3385.5,0.395236]
[1641486829297,2.00479,3386.2,3385.5,0.395236]
[1641486829496,2.401972,3386.2,3385.5,0.395236]
[1641486830700,2.401972,3386.2,3385.8,0.75092624]
[1641486831902,2.401972,3386.2,3385.5,0.75092624]
[1641486832103,3.026072,3386.2,3385.5,0.75092624]
[1641486832703,2.00479,3385.6,3385.5,0.75092624]
[1641486832906,2.861954,3385.6,3384.8,12.64]
[1641486833103,2.861954,3385.6,3384.9,0.779708]
[1641486833504,2.861954,3385.6,3384.1,31.6435]
[1641486833705,2.861954,3385.6,3384.2,1.5]
[1641486833906,2.861954,3385.6,3384.3,12.64]
[1641486834308,2.861954,3385.6,3384.3,14.1169238]
[1641486834605,2.00479,3384.9,3384.3,14.1169238]
[1641486834806,3.150672,3384.9,3384.3,14.1169238]
[1641486835109,3.150672,3384.9,3384.4,0.384472]
[1641486835707,1.145882,3384.9,3384.4,0.384472]
[1641486836109,1.145882,3384.9,3384.2,2.9955352]
[1641486836310,1.145882,3384.9,3384.2,1.87764466]
[1641486836812,3.150672,3384.9,3384.2,1.87764466]
[1641486837210,3.150672,3384.9,3384.3,0.384472]
[1641486837410,4.390077,3384.9,3384.3,0.384472]
[1641486838613,3.150672,3384.9,3384.3,0.384472]
[1641486838813,4.14188154,3384.9,3384.3,0.384472]
[1641486839012,4.14188154,3384.9,3384.3,13.419708]
[1641486839212,4.14188154,3384.9,3384.3,0.779708]
[1641486839415,4.14188154,3384.9,3384.3,0.384472]
[1641486840012,4.14188154,3384.9,3384.1,2.00479]
[1641486840213,4.14188154,3384.9,3384.2,0.57480101]
[1641486841218,1.5,3384.4,3384.2,0.57480101]
[1641486841417,0.857164,3384.3,3383.6,1.87764466]
[1641486841817,1.5,3384.2,3383.6,1.87764466]
[1641486842030,0.397182,3384.1,3383.6,1.87764466]
[1641486842216,1.52134362,3384.1,3383.6,1.87764466]
[1641486842818,2.00479,3383.9,3383.3,2.50348492]
[1641486843018,0.397182,3383.8,3383.1,3.88243466]
[1641486843218,0.397182,3383.8,3383.2,0.384472]
[1641486843621,0.397182,3383.8,3383.1,3.88243466]
[1641486843821,1.5,3383.5,3383.1,1.87764466]
[1641486844022,1.5,3383.5,3382.8,2.50348492]
[1641486844023,0.397182,3383.4,3382.8,4.38112958]
[1641486844222,0.397182,3383.4,3382.8,1.87764466]
[1641486844821,2.00479,3382.9,3382.8,1.87764466]
[1641486845021,2.861954,3382.9,3382.8,1.87764466]
[1641486845822,2.861954,3382.9,3382.5,2.50348492]
[1641486846024,2.00479,3382.9,3382.3,1.87764466]
[1641486846625,2.00479,3382.9,3382.3,2.27288066]
[1641486846825,2.401972,3382.9,3382.3,2.27288066]
[1641486847130,2.401972,3382.9,3382.4,0.384472]
[1641486847326,2.401972,3382.9,3382.5,1.87764466]
[1641486848126,1.14352396,3382.8,3382.5,1.87764466]
[1641486848326,0.459982,3382.7,3382.5,1.87764466]
[1641486848527,0.397182,3382.6,3382.5,0.19303395]
[1641486848928,2.00479,3382.9,3382.5,0.19303395]
[1641486849128,0.99120954,3383.4,3382.6,12.64]
[1641486849329,0.397182,3383.3,3382.7,0.395236]
[1641486849530,0.397182,3383.3,3382.8,12.64]
[1641486849733,0.99120954,3383.4,3382.5,0.19303395]
[1641486849932,0.397182,3383.3,3382.6,1.5]
[1641486850132,0.99120954,3383.5,3382.7,12.64]
[1641486850532,9.54e-06,3383.5,3383.4,1.5]
[1641486850736,2.00479,3384.4,3383.5,0.384472]
[1641486850931,2.00479,3384.4,3384.0,1.5]
[1641486851132,2.00479,3384.4,3384.1,0.395236]
[1641486851332,1.48394549,3384.3,3384.1,0.395236]
[1641486851532,1.48394549,3384.3,3384.1,13.035236]
[1641486852334,1.48394549,3384.3,3384.2,12.64]
[1641486852532,1.86217549,3384.6,3384.2,12.64]
[1641486852732,1.86217549,3384.6,3384.3,0.779708]
[1641486852932,2.00479,3385.0,3384.3,0.779708]
[1641486853334,2.00479,3385.0,3384.4,12.64]
[1641486853536,2.00479,3385.0,3384.5,0.395236]
[1641486853733,2.00479,3385.0,3384.3,0.384472]
[1641486853934,2.00479,3385.0,3384.9,0.75082578]
[1641486854235,2.464772,3385.0,3384.9,0.75082578]
[1641486854533,2.00479,3385.0,3384.9,0.75082578]
[1641486855935,2.464772,3385.0,3384.9,0.75082578]
[1641486857637,2.861954,3385.0,3384.9,0.75082578]
[1641486858036,2.401972,3385.0,3384.9,0.75082578]
[1641486858941,2.00479,3385.0,3384.9,0.75082578]
[1641486859340,3.15041601,3385.6,3384.9,0.75082578]
[1641486859644,1.86217549,3385.6,3385.0,0.779708]
[1641486859840,1.86217549,3385.6,3385.1,12.64]
[1641486860241,1.86217549,3385.6,3385.2,13.035236]
[1641486860441,1.2375231,3385.5,3385.3,0.75082578]
[1641486860840,1.2375231,3385.5,3384.9,0.19303395]
[1641486861041,12.64,3384.9,3383.0,1.5732288]
[1641486861442,1.5,3383.7,3383.0,1.5732288]
[1641486861643,0.397182,3383.6,3383.0,1.5732288]
[1641486861842,0.397182,3383.6,3382.1,1.5]
[1641486862044,0.397182,3383.6,3382.7,12.64]
[1641486862444,0.397182,3383.6,3382.6,4.18580401]
[1641486862844,2.00479,3382.7,3382.6,4.18580401]
[1641486863044,3.605154,3382.7,3382.6,4.18580401]
[1641486863445,3.145172,3382.7,3382.3,13.024472]
[1641486864247,2.74799,3382.7,3382.3,13.024472]
[1641486864446,2.74799,3382.7,3382.5,14.14]
[1641486864447,2.00479,3382.7,3382.5,14.14]
[1641486865650,2.00479,3382.9,3382.5,14.14]
[1641486865850,2.00479,3382.9,3382.8,12.64]
[1641486866948,2.00479,3382.9,3382.5,2.00479]
[1641486868653,0.397182,3382.8,3382.5,2.00479]
[1641486868853,0.459982,3382.7,3382.5,2.00479]
[1641486869455,2.00479,3382.9,3382.5,2.00479]
[1641486870052,2.00479,3382.9,3382.5,4.16129]
[1641486870254,2.00479,3382.9,3382.8,1.5]
[1641486870458,2.00479,3382.9,3382.8,14.14]
[1641486870654,0.98684401,3383.2,3382.8,14.14]
[1641486871156,0.98684401,3383.2,3382.2,1.87794207]
[1641486871359,1.5,3383.0,3382.2,1.87794207]
[1641486871557,1.5,3383.0,3382.6,1.87794207]
[1641486871759,0.397182,3382.9,3382.6,1.87794207]
[1641486872056,0.459982,3382.8,3382.6,1.87794207]
[1641486872258,0.384472,3383.3,3382.7,1.5]
[1641486872456,2.99163401,3383.6,3382.7,12.64]
[1641486872856,2.99163401,3383.6,3383.2,2.00479]
[1641486873059,1.48502772,3383.4,3383.2,2.00479]
[1641486874259,0.781654,3383.5,3383.2,2.00479]
[1641486874459,0.397182,3383.5,3383.2,2.389262]
[1641486875160,0.459982,3383.4,3383.2,2.00479]
[1641486875360,0.397182,3383.3,3382.8,2.00479]
[1641486875562,1.213082,3383.3,3382.8,2.00479]
[1641486877169,0.397182,3383.3,3382.8,2.00479]
[1641486878176,1.48502772,3383.8,3383.2,1.5]
[1641486878371,1.48502772,3383.8,3383.3,12.64]
[1641486878571,1.48502772,3383.8,3383.2,0.7452]
[1641486878971,1.48502772,3383.8,3383.6,2.00479]
[1641486879574,1.48502772,3383.8,3383.7,1.5]
[1641486879774,1.48502772,3383.8,3383.6,2.00479]
[1641486879974,2.00479,3384.4,3383.6,2.00479]
[1641486880173,33.1154,3384.9,3383.7,1.5]
[1641486880373,1.48502772,3385.1,3384.5,1.5]
[1641486880573,0.397182,3385.0,3384.5,0.5623]
[1641486880776,0.397182,3385.0,3384.6,12.64]
[1641486880973,0.397182,3385.0,3384.6,2.00479]
[1641486881373,0.397182,3385.0,3384.5,0.5623]
[1641486881774,0.397182,3385.0,3384.5,0.946772]
[1641486881974,0.781654,3385.0,3384.5,0.946772]
[1641486882673,0.781654,3385.0,3384.5,0.5623]
[1641486882873,0.781654,3385.0,3384.4,2.00479]
[1641486883075,0.384472,3385.0,3384.4,2.00479]
[1641486883278,2.00479,3385.3,3384.9,12.64]
[1641486883477,2.00479,3385.7,3385.1,1.5]
[1641486883675,2.00479,3385.7,3385.2,12.64]
[1641486883875,2.00479,3385.7,3385.2,13.024472]
[1641486884876,2.00479,3385.7,3385.4,12.64]
[1641486885277,2.00479,3385.7,3385.3,2.00479]
[1641486885477,0.459982,3385.6,3385.3,2.00479]
[1641486885676,0.459982,3385.6,3385.2,0.384472]
[1641486886080,2.00479,3385.7,3385.5,1.5]
[1641486886277,2.00479,3385.7,3385.6,12.64]
[1641486886677,2.00479,3385.7,3385.6,13.024472]
[1641486886977,2.00479,3385.7,3385.6,0.384472]
[1641486888181,2.00479,3385.7,3385.6,13.024472]
[1641486888384,2.00479,3385.7,3385.6,14.524472]
[1641486888781,1.23378203,3386.5,3385.6,14.524472]
[1641486888983,1.23378203,3386.5,3386.2,14.64479]
[1641486889182,1.23378203,3386.5,3386.2,15.51249]
[1641486889384,1.23378203,3386.5,3386.4,12.64]
[1641486889584,1.23378203,3386.6,3386.4,12.64]
[1641486889885,1.69376403,3386.6,3386.2,2.87249]
[1641486890183,1.69376403,3386.6,3386.2,2.00479]
[1641486890382,0.397182,3386.5,3385.3,2.00479]
[1641486890583,1.23378203,3386.6,3385.8,1.5]
[1641486890784,1.23378203,3386.6,3385.9,12.64]
[1641486890986,0.4692932,3386.7,3386.1,12.64]
[1641486891284,0.4692932,3386.7,3386.2,0.384472]
[1641486891483,0.4692932,3386.7,3386.3,12.64]
[1641486891784,0.4692932,3386.7,3386.5,12.64]
[1641486892083,0.9292752,3386.7,3386.2,0.384472]
[1641486892484,0.459982,3386.7,3386.2,0.384472]
[1641486893286,0.781654,3386.8,3386.2,0.384472]
[1641486894085,0.781654,3386.8,3386.3,12.64]
[1641486894586,0.397182,3386.8,3386.2,0.384472]
[1641486894987,0.46929045,3386.7,3386.2,0.384472]
[1641486895188,0.46929045,3386.7,3386.3,12.64]
[1641486895890,3.23857203,3387.0,3386.3,12.64]
[1641486896089,0.781654,3386.9,3386.2,2.389262]
[1641486896486,0.781654,3386.9,3386.3,12.64]
[1641486896689,0.781654,3386.9,3386.2,2.389262]
[1641486896987,1.520554,3386.9,3385.5,33.6619]
[1641486897186,2.00479,3386.3,3385.5,2.00479]
[1641486897388,2.00479,3386.3,3385.6,0.384472]
[1641486897587,2.401972,3386.3,3385.6,0.384472]
[1641486898187,0.384472,3386.2,3385.6,0.384472]
[1641486898389,0.995172,3386.2,3385.6,0.384472]
[1641486898787,0.6107,3386.2,3385.6,0.384472]
[1641486898988,0.397182,3386.1,3385.6,0.384472]
[1641486899590,0.397182,3386.1,3385.5,2.00479]
[1641486899789,0.397182,3386.1,3383.9,1.87794207]
[1641486899990,1.5,3385.9,3383.9,1.87794207]
[1641486900192,0.6107,3386.2,3384.7,12.64]
[1641486900390,30.735,3386.2,3385.6,12.64]
[1641486900590,2.00479,3386.3,3385.6,13.024472]
[1641486901392,1.23378203,3386.5,3386.1,12.64]
[1641486901594,1.23378203,3386.5,3386.4,14.14]
[1641486902193,1.23378203,3386.5,3386.4,12.64]
[1641486902393,1.23378203,3386.6,3386.4,12.64]
[1641486902596,1.23378203,3386.6,3386.5,13.024472]
[1641486902993,1.48502772,3386.9,3386.5,13.024472]
[1641486903194,1.48502772,3386.9,3386.8,14.64479]
[1641486903395,1.48502772,3386.9,3386.8,2.00479]
[1641486903595,0.62572426,3387.6,3386.8,14.64479]
[1641486903798,0.397182,3387.5,3386.8,14.64479]
[1641486903995,0.62572426,3387.6,3386.8,14.64479]
[1641486904597,1.48502772,3387.8,3386.8,14.64479]
[1641486904598,1.48502772,3387.8,3386.8,16.14479]
[1641486904895,1.48502772,3388.0,3387.0,12.64]
[1641486905095,1.48502772,3388.0,3387.0,13.2538]
[1641486905296,1.48502772,3388.0,3387.5,14.64479]
[1641486905496,1.48502772,3388.0,3387.7,12.64]
[1641486905698,1.48502772,3388.0,3387.7,13.2572]
[1641486906300,0.98478149,3387.9,3387.7,13.2572]
[1641486906697,0.459982,3387.8,3387.7,0.6172]
[1641486906897,0.459982,3387.8,3387.6,0.384472]
[1641486907800,0.459982,3387.8,3387.5,2.00479]
[1641486907998,0.459982,3387.8,3387.3,0.384472]
[1641486908199,1.5,3387.4,3379.0,34.89358157]
[1641486908400,1.5,3387.2,3385.3,32.3252]
[1641486908600,30.4767,3387.7,3385.3,32.3252]
[1641486908804,30.4767,3387.7,3385.4,12.64]
[1641486909000,31.46148149,3387.7,3385.4,12.64]
[1641486909200,2.00479,3387.1,3386.3,14.64479]
[1641486909905,2.00479,3387.1,3386.4,0.384472]
[1641486910106,2.00479,3387.1,3386.5,12.64]
[1641486910504,0.98478149,3387.3,3386.5,12.64]
[1641486911203,0.98478149,3387.3,3386.8,2.00479]
[1641486911607,2.00479,3387.4,3386.8,2.00479]
[1641486911806,0.781654,3387.3,3386.8,2.00479]
[1641486912004,0.397182,3387.3,3386.8,2.00479]
[1641486913204,0.397182,3387.3,3386.8,14.64479]
[1641486913607,0.397182,3387.3,3386.8,2.00479]
[1641486914207,0.781654,3387.3,3386.4,0.384472]
[1641486914406,1.336254,3387.3,3386.4,0.384472]
[1641486915108,0.951782,3387.3,3386.5,12.64]
[1641486915306,0.951782,3387.3,3386.8,12.64]
[1641486915506,0.98478149,3387.6,3386.9,1.5]
[1641486915709,1.23071142,3387.8,3387.2,1.5]
[1641486915910,1.23071142,3387.8,3387.3,0.384472]
[1641486916110,1.48502772,3388.1,3387.4,12.64]
[1641486916111,3.08388754,3387.6,3387.4,12.64]
[1641486917113,3.39199831,3387.9,3387.4,12.64]
[1641486917313,3.39199831,3387.9,3387.5,2.00479]
[1641486917713,3.10042808,3388.4,3387.6,12.64]
[1641486918916,8.15846431,3388.6,3387.6,12.64]
[1641486919120,0.46912448,3387.9,3387.6,12.64]
[1641486920116,0.46912448,3388.5,3387.6,12.64]
[1641486921220,1.5,3388.1,3387.3,0.384472]
[1641486921417,2.00479,3387.8,3386.7,2.00479]
[1641486921627,2.69649,3387.8,3386.7,2.00479]
[1641486922225,2.69649,3387.8,3386.8,12.64]
[1641486922421,0.46912448,3387.7,3386.8,12.77225737]
[1641486923723,2.00479,3387.8,3386.8,12.64]
[1641486925622,1.5,3387.7,3386.7,2.00479]
[1641486925820,1.5,3387.5,3386.7,2.00479]
[1641486926020,0.397182,3387.4,3386.8,0.384472]
[1641486926223,0.781654,3387.4,3386.8,0.384472]
[1641486926423,0.781654,3387.4,3386.7,2.00479]
[1641486926824,0.781654,3387.4,3386.7,14.64479]
[1641486927021,0.397182,3387.4,3386.7,12.64]
[1641486927222,2.00479,3387.8,3386.7,12.64]
[1641486927424,2.00479,3387.8,3386.9,2.00479]
[1641486927623,2.00479,3387.8,3386.9,0.00304494]
[1641486928623,2.00479,3387.8,3386.9,12.64304494]
[1641486929427,1.5,3387.0,3385.8,30.5289]
[1641486929624,1.5,3386.7,3382.4,2.50381337]
[1641486929824,1.5,3386.7,3384.6,1.5]
[1641486930124,1.5,3386.7,3384.1,1.5]
[1641486930525,1.5,3386.7,3385.0,12.64]
[1641486931327,2.00479,3385.9,3385.1,2.00479]
[1641486931526,2.00479,3385.9,3385.2,0.384472]
[1641486931930,0.397182,3385.8,3385.2,0.384472]
[1641486932227,0.384472,3385.7,3385.2,0.384472]
[1641486932433,0.781654,3385.7,3385.2,0.384472]
[1641486933627,0.781654,3385.7,3385.2,13.024472]
[1641486934829,0.781654,3385.7,3385.2,0.384472]
[1641486935029,0.781654,3385.7,3384.8,2.00479]
[1641486935429,2.00479,3385.5,3384.8,2.00479]
[1641486935730,0.397182,3385.4,3384.8,2.00479]
[1641486936530,0.397182,3385.4,3384.8,2.389262]
[1641486936931,0.397182,3385.4,3384.8,15.029262]
[1641486937133,0.397182,3385.4,3384.8,2.389262]
[1641486939233,0.46933151,3385.3,3384.9,0.19595174]
[1641486939435,0.97214518,3385.2,3384.9,0.19595174]
[1641486939636,0.459982,3385.1,3384.9,0.19595174]
[1641486939835,1.36932718,3385.2,3384.9,0.19595174]
[1641486940838,1.43212718,3385.1,3384.9,0.19595174]
[1641486941241,1.82930918,3385.1,3384.9,0.19595174]
[1641486941640,0.46933151,3385.0,3384.9,0.19595174]
[1641486942040,0.92931351,3385.0,3384.9,0.19595174]
[1641486942243,3.59378551,3385.0,3384.9,0.19595174]
[1641486942441,3.99096751,3385.0,3384.3,1.87794207]
[1641486942639,1.5,3384.8,3384.2,1.87794207]
[1641486942839,1.5,3384.8,3384.6,0.57420816]
[1641486943039,0.857164,3384.7,3384.6,0.57420816]
[1641486943439,4.866744,3384.7,3384.6,0.57420816]
[1641486943843,4.866744,3384.7,3384.2,1.87794207]
[1641486944242,4.866744,3384.7,3384.5,0.75112156]
[1641486945241,4.406762,3384.7,3384.1,0.384472]
[1641486945540,1.44997726,3384.6,3384.1,0.384472]
[1641486946344,0.98999526,3384.6,3384.1,0.384472]
[1641486946744,0.397182,3384.5,3384.1,0.384472]
[1641486947144,0.397182,3384.5,3383.5,2.00479]
[1641486947547,2.00479,3384.3,3383.5,14.64479]
[1641486947746,2.00479,3384.3,3383.6,0.384472]
[1641486948045,0.397182,3384.2,3383.6,0.384472]
[1641486950149,0.397182,3384.2,3383.7,12.64]
[1641486950347,2.00479,3384.3,3383.7,12.64]
[1641486951248,2.00479,3384.3,3383.6,13.024472]
[1641486951447,2.68779,3384.3,3383.6,14.524472]
[1641486951647,2.68779,3384.3,3383.6,13.024472]
[1641486952653,2.68779,3384.3,3383.6,0.384472]
[1641486952849,3.469444,3384.3,3383.6,0.384472]
[1641486955852,2.68779,3384.3,3383.7,12.64]
[1641486956055,2.00479,3384.3,3383.7,12.64]
[1641486956255,2.00479,3384.3,3383.6,0.384472]
[1641486956857,2.00479,3384.3,3383.6,13.024472]
[1641486957955,2.00479,3384.3,3383.6,0.384472]
[1641486958156,2.00479,3384.3,3383.7,12.64]
[1641486958356,2.00479,3384.3,3383.7,14.836]
[1641486958756,2.00479,3384.7,3384.2,14.14]
[1641486958956,2.00479,3384.7,3384.4,12.64]
[1641486959157,2.00479,3384.7,3384.4,13.4855]
[1641486960057,2.00479,3384.7,3384.3,0.384472]
[1641486960259,2.00479,3384.7,3384.3,13.024472]
[1641486960459,2.00479,3384.7,3384.3,0.384472]
[1641486961357,2.00479,3384.7,3384.4,12.64]
[1641486961661,2.00479,3384.7,3384.3,0.384472]
[1641486962358,2.00479,3385.2,3384.6,1.5]
[1641486962559,33.5038,3386.3,3385.2,12.64]
[1641486962761,0.98999526,3386.6,3385.2,12.64]
[1641486962959,2.46643497,3386.8,3385.5,12.64]
[1641486963159,0.98999526,3386.8,3385.5,13.3458]
[1641486963559,2.00479,3385.9,3385.6,1.5]
[1641486963859,2.00479,3385.9,3385.7,13.024472]
[1641486964259,2.00479,3386.2,3385.7,13.024472]
[1641486964260,2.00479,3386.2,3385.8,14.14]
[1641486964665,32.3389,3387.4,3385.8,12.64]
[1641486964862,32.3389,3387.4,3386.0,12.64]
[1641486965061,0.98999526,3387.5,3386.3,1.5]
[1641486965265,0.98999526,3387.5,3386.4,12.64]
[1641486965461,2.00479,3387.1,3386.6,12.64]
[1641486965662,2.00479,3387.1,3386.7,13.024472]
[1641486965862,2.00479,3387.1,3386.7,14.524472]
[1641486966061,0.98999526,3387.5,3386.9,1.5]
[1641486966264,1.23749407,3387.8,3387.4,12.64]
[1641486966462,1.46071715,3388.0,3387.4,13.2119]
[1641486966662,0.97749491,3388.1,3387.4,13.2119]
[1641486967361,0.97749491,3388.1,3387.6,1.47525699]
[1641486967562,1.23749407,3388.3,3387.9,12.64]
[1641486967764,1.23749407,3388.3,3388.1,12.64]
[1641486968163,3.46550715,3388.6,3388.1,12.64]
[1641486968364,2.00479,3388.6,3388.1,12.64]
[1641486969062,2.00479,3388.9,3388.3,1.5]
[1641486969262,2.71267271,3389.7,3388.7,12.64]
[1641486969263,1.23749407,3389.7,3388.7,12.64]
[1641486969463,1.23749407,3389.7,3389.6,2.00479]
[1641486969664,1.69747607,3389.7,3389.6,2.00479]
[1641486969863,1.23749407,3389.8,3389.6,2.389262]
[1641486970267,1.23749407,3389.8,3389.6,15.029262]
[1641486970866,9.407e-05,3389.8,3389.6,15.029262]
[1641486971065,9.407e-05,3389.8,3389.7,1.5]
[1641486971267,1.46071715,3390.1,3389.8,12.64]
[1641486971464,1.82589644,3390.3,3390.0,16.14479]
[1641486971666,2.43452858,3390.6,3390.3,12.64]
[1641486971865,2.43452858,3390.6,3390.3,13.5222]
[1641486972065,1.46572609,3391.3,3390.5,12.64]
[1641486972264,1.46572609,3391.3,3390.5,10.63924988]
[1641486972465,1.46572609,3391.3,3390.4,0.384472]
[1641486972664,1.46572609,3391.3,3390.4,13.024472]
[1641486972869,1.46572609,3391.3,3390.7,1.47390452]
[1641486973067,0.397182,3391.2,3390.6,12.64]
[1641486973267,1.83215761,3391.5,3390.4,0.384472]
[1641486973469,1.83215761,3391.5,3390.8,2.00479]
[1641486973666,0.781654,3391.4,3390.8,2.00479]
[1641486974265,0.397182,3391.4,3390.8,2.00479]
[1641486975270,0.397182,3391.4,3389.6,32.8087]
[1641486975271,1.5,3391.3,3389.6,32.8087]
[1641486975470,2.00479,3390.5,3389.7,2.00479]
[1641486975668,0.397182,3390.4,3389.8,0.384472]
[1641486976971,0.46886539,3391.2,3389.8,0.384472]
[1641486977571,0.46886539,3391.2,3390.6,2.00479]
[1641486977772,0.397182,3391.1,3390.6,2.00479]
[1641486978573,0.384472,3391.0,3390.6,2.00479]
[1641486978775,0.397182,3390.9,3390.6,2.00479]
[1641486978977,0.459982,3390.8,3390.6,2.00479]
[1641486979574,0.397182,3390.9,3390.5,0.384472]
[1641486981577,0.397182,3390.9,3390.6,2.00479]
[1641486981780,2.00479,3391.3,3390.6,2.00479]
[1641486982177,2.00479,3391.3,3390.6,2.54309]
[1641486982478,2.00479,3391.3,3390.6,15.18309]
[1641486982678,2.00479,3391.7,3390.6,2.54309]
[1641486983478,2.00479,3391.7,3390.6,4.00958]
[1641486987282,3.50479,3391.7,3390.6,4.00958]
[1641486987484,2.00479,3391.3,3390.6,4.00958]
[1641486987684,0.397182,3391.2,3390.6,4.00958]
[1641486990189,2.00479,3391.3,3390.6,4.00958]
[1641486990387,2.00479,3391.3,3390.6,0.00478064]
[1641486990588,2.401972,3391.3,3390.6,0.00478064]